fUSD/lending_fUSD_20251013
["ID","MTS","AMOUNT","RATE_DAILY","PERIOD"]
[391091330,1760321443341,-3730.40953473,0.00016922,2]
[391091331,1760321443353,-302.38489527,0.00016922,2]
[391091332,1760321443554,-539.79374461,0.00016922,2]
[391091333,1760321443612,-1047.36022333,0.00016922,2]
[391091334,1760321443625,-4380.04160206,0.00016922,2]
[391091335,1760321443635,-299.99,0.00016922,4]
[391091336,1760321443645,-150.99,0.00016922,2]
[391091337,1760321443654,-999.99,0.00016922,2]
[391091338,1760321443664,-11455.01673214,0.00016925,2]
[391091339,1760321443674,-11878.85235123,0.0001698,2]
[391091340,1760321443684,-453.21733468,0.00017,2]
[391091341,1760321443693,-2193.65536424,0.00017035,2]
[391091343,1760321446180,-3823.0746,0.00017035,2]
[391091344,1760321446391,-1053.99840832,0.00017035,2]
[391091345,1760321446445,-5247.64151567,0.00017035,2]
[391091346,1760321446455,-220.0,0.00017071,2]
[391091347,1760321446464,-12774.14957409,0.0001709,2]
[391091348,1760321446474,-13246.79310833,0.00017145,2]
[391091349,1760321446483,-13736.92445334,0.000172,2]
[391091350,1760321446492,-180.0,0.00017246,2]
[391091351,1760321446502,-643.00402963,0.00017266,2]
[391091352,1760321446514,-510.61355379,0.00017715,2]
[391091353,1760321446525,-500.0,0.00017715,2]
[391091354,1760321446534,-500.0,0.00017715,2]
[391091355,1760321446544,-500.0,0.00017715,2]
[391091356,1760321446554,-500.0,0.00017715,2]
[391091357,1760321446563,-500.0,0.00017715,2]
[391091358,1760321446572,-500.0,0.00017715,2]
[391091359,1760321446581,-500.0,0.00017715,2]
[391091360,1760321446592,-500.0,0.00017715,2]
[391091361,1760321446602,-500.0,0.00017715,2]
[391091363,1760321446611,-500.0,0.00017715,2]
[391091365,1760321446620,-500.0,0.00017715,2]
[391091367,1760321446630,-500.0,0.00017715,2]
[391091369,1760321446639,-616.55263249,0.00017715,2]
[391091371,1760321446649,-1000.0,0.00017715,2]
[391091373,1760321446658,-1000.0,0.00017715,2]
[391091375,1760321446667,-1000.0,0.00017715,2]
[391091376,1760321446676,-1000.0,0.00017715,2]
[391091377,1760321446686,-1000.0,0.00017715,2]
[391091378,1760321446695,-1000.0,0.00017715,2]
[391091379,1760321446704,-1000.0,0.00017715,2]
[391091380,1760321446717,-1000.0,0.00017715,2]
[391091381,1760321446727,-1000.0,0.00017715,2]
[391091382,1760321446739,-1000.0,0.00017715,2]
[391091383,1760321446748,-1000.0,0.00017715,2]
[391091384,1760321446757,-1000.0,0.00017715,2]
[391091385,1760321446766,-1000.0,0.00017715,2]
[391091386,1760321446775,-1000.0,0.00017715,2]
[391091387,1760321446784,-1000.0,0.00017715,2]
[391091388,1760321446795,-1000.0,0.00017715,2]
[391091389,1760321446804,-1000.0,0.00017715,2]
[391091390,1760321446814,-1000.0,0.00017715,2]
[391091391,1760321446823,-1000.0,0.00017715,2]
[391091392,1760321446832,-1000.0,0.00017715,2]
[391091393,1760321446841,-1000.0,0.00017715,2]
[391091394,1760321446851,-1000.0,0.00017715,2]
[391091395,1760321446860,-1000.0,0.00017715,2]
[391091396,1760321446869,-1000.0,0.00017715,2]
[391091397,1760321446878,-201.05319097,0.00017814,2]
[391091398,1760321446888,-5729.81711943,0.000184,2]
[391091399,1760321446897,-2500.0,0.00018478,3]
[391091400,1760321446907,-2500.0,0.00018486,3]
[391091401,1760321446916,-2500.0,0.00018495,3]
[391091402,1760321446925,-2500.0,0.00018504,3]
[391091403,1760321446934,-2500.0,0.00018513,3]
[391091404,1760321446943,-2500.0,0.00018522,3]
[391091405,1760321446952,-298.0,0.00018575,2]
[391091406,1760321446962,-5729.81711943,0.000187,2]
[391091407,1760321446971,-234.56205613,0.00018784,2]
[391091408,1760321446981,-205.56,0.00018797,2]
[391091409,1760321446991,-5729.81711943,0.000189,2]
[391091410,1760321447001,-250.0,0.00019001,2]
[391091411,1760321447010,-5729.81711943,0.000191,2]
[391091412,1760321447019,-5729.81711943,0.000193,2]
[391091413,1760321447029,-5729.81711943,0.000195,2]
[391091414,1760321447039,-500.0,0.00019514,2]
[391091415,1760321447049,-150.0,0.00019514,2]
[391091416,1760321447058,-150.0,0.00019514,2]
[391091417,1760321447068,-150.0,0.00019514,2]
[391091418,1760321447077,-649.53875032,0.00019569,2]
[391091419,1760321447087,-150.0,0.00019569,2]
[391091420,1760321447096,-150.0,0.00019624,2]
[391091421,1760321447105,-173.1862676,0.00019678,2]
[391091422,1760321447114,-5729.81711943,0.000197,2]
[391091423,1760321447123,-934.84,0.00019725,2]
[391091424,1760321447132,-268.0709213,0.00019754,2]
[391091425,1760321447142,-2751.0,0.00020029,2]
[391091426,1760321447151,-18734.66,0.00020145,2]
[391091427,1760321447161,-2000.0,0.000203,2]
[391091428,1760321447172,-234.99,0.00020484,2]
[391091429,1760321447182,-157.56,0.00020484,2]
[391091430,1760321447191,-301.57978646,0.00020724,2]
[391091431,1760321447201,-2943.23,0.00020771,2]
[391091432,1760321447211,-150.0,0.00020884,2]
[391091433,1760321447220,-168.5,0.00021441,2]
[391091434,1760321447229,-173.31,0.00021478,2]
[391091435,1760321447238,-335.08865162,0.00021694,2]
[391091436,1760321447248,-619.3209068,0.000218,2]
[391091437,1760321447257,-200.0,0.00022254,2]
[391091438,1760321447266,-368.59751678,0.00022665,2]
[391091439,1760321447276,-5064.0,0.000227,5]
[391091440,1760321447285,-9399.3670551,0.00022899,2]
[391091441,1760321447296,-500.0,0.00023105,2]
[391091442,1760321447305,-614.97754404,0.00023105,2]
[391091443,1760321447314,-150.0,0.00023105,2]
[391091444,1760321447323,-150.0,0.0002316,2]
[391091445,1760321447332,-150.0,0.00023215,2]
[391091446,1760321447341,-200.8260959,0.00023269,2]
[391091447,1760321447351,-402.10638195,0.00023635,2]
[391091448,1760321447360,-2000.0,0.00024,2]
[391091449,1760321447369,-215.98921824,0.00024199,6]
[391091450,1760321447379,-1961.127,0.00024199,6]
[391091451,1760321447388,-532.1091,0.00024397,2]
[391091452,1760321447397,-435.61524711,0.00024605,2]
[391091453,1760321447407,-2206.63,0.00024685,30]
[391091454,1760321447415,-26725.9074792,0.00025004,3]
[391091455,1760321447424,-205.56,0.00025511,2]
[391091456,1760321447434,-469.12411227,0.00025575,3]
[391091457,1760321447443,-500.0,0.00026242,2]
[391091458,1760321447452,-502.63297744,0.00026545,5]
[391091459,1760321447461,-168.5,0.00026801,2]
[391091460,1760321447471,-150.0,0.00027,2]
[391091461,1760321447480,-475.28169836,0.00027,3]
[391091462,1760321447489,-250.0,0.00027261,7]
[391091463,1760321447498,-168.0,0.00027266,2]
[391091464,1760321447508,-300.0,0.00027397,7]
[391091465,1760321447522,-150.0,0.00027397,7]
[391091466,1760321447531,-600.0,0.00027397,2]
[391091467,1760321447540,-417.71145026,0.00027397,2]
[391091468,1760321447551,-1006.0,0.000274,2]
[391091469,1760321447562,-536.1418426,0.00027515,7]
[391091470,1760321447571,-300.0,0.00027534,7]
[391091471,1760321447581,-168.0,0.00027676,2]
[391091472,1760321447592,-2000.0,0.000277,2]
[391091473,1760321447601,-205.56,0.00027808,2]
[391091474,1760321447611,-600.0,0.00027945,2]
[391091475,1760321447621,-842.12915876,0.00028009,2]
[391091476,1760321447630,-168.0,0.00028053,2]
[391091477,1760321447639,-1498.9,0.00028355,2]
[391091478,1760321447649,-1166.66666,0.0002839,2]
[391091479,1760321447658,-500.0,0.00028434,7]
[391091480,1760321447667,-569.65070776,0.00028485,9]
[391091481,1760321447677,-842.12915876,0.00028488,2]
[391091482,1760321447686,-600.0,0.00028493,2]
[391091483,1760321447695,-842.12915876,0.00028509,2]
[391091484,1760321447706,-722.97,0.00028575,2]
[391091485,1760321447716,-563.09128515,0.00028767,15]
[391091486,1760321447726,-1000.0,0.000288,2]
[391091487,1760321447735,-150.0,0.00028864,120]
[391091488,1760321447745,-400.0,0.000289,10]
[391091489,1760321448069,-2128.0,0.00028979,5]
[391091490,1760321448079,-842.12915876,0.00028991,2]
[391091491,1760321448088,-4759.75215,0.00029,14]
[391091492,1760321448098,-3000.0,0.00029,7]
[391091493,1760321448107,-3573.57056392,0.00029,12]
[391091494,1760321448117,-155.493,0.00029,2]
[391091495,1760321448127,-800.0,0.00029,10]
[391091496,1760321448137,-11691.9727464,0.00029,5]
[391091497,1760321448147,-26725.9074792,0.00029031,3]
[391091498,1760321448156,-1444.0,0.00029041,120]
[391091499,1760321448166,-600.0,0.00029041,2]
[391091500,1760321448176,-2943.23,0.00029079,2]
[391091501,1760321448186,-1300.0,0.000291,10]
[391091502,1760321448196,-842.12915879,0.00029155,2]
[391091503,1760321448206,-1700.0,0.000292,10]
[391091504,1760321448216,-300.0,0.00029234,40]
[391091505,1760321448224,-1000.0,0.00029271,2]
[391091506,1760321448234,-2200.0,0.000293,10]
[391091507,1760321448243,-434.64550526,0.00029304,2]
[391091508,1760321448252,-1000.0,0.00029308,2]
[391091509,1760321448262,-5000.0,0.00029312,2]
[391091510,1760321448271,-168.0,0.0002932,2]
[391091511,1760321448280,-1000.0,0.00029332,2]
[391091512,1760321448290,-168.0,0.00029335,2]
[391091513,1760321448300,-1425.0,0.00029346,2]
[391091514,1760321448309,-504.657514,0.00029357,120]
[391091515,1760321448318,-2000.0,0.00029382,2]
[391091516,1760321448327,-2000.0,0.00029382,2]
[391091517,1760321448336,-400.0,0.000294,10]
[391091518,1760321448345,-26725.9074792,0.00029402,3]
[391091519,1760321448355,-1009.46943614,0.0002941,2]
[391091520,1760321448364,-166.85580661,0.00029412,2]
[391091521,1760321448373,-1425.0,0.00029412,2]
[391091522,1760321448382,-1489.6473268,0.00029412,2]
[391091523,1760321448391,-427.83764015,0.00029412,2]
[391091524,1760321448400,-4404.42149751,0.00029412,2]
[391091525,1760321448410,-12662.11568872,0.00029412,3]
[391091527,1760321596540,300.0,0.00027397,120]
[391091528,1760321607053,300.0,0.00027397,120]
[391091529,1760321627617,300.36609,0.00027397,120]
[391091530,1760321833805,100000.0,0.00027397,120]
[391091538,1760322329609,320.0,0.00026492,120]
[391091539,1760322452220,-238.86813299,0.0001305,2]
[391091540,1760322455205,-216.50315266,0.0001305,2]
[391091541,1760322457209,-181.18192213,0.0001305,2]
[391091542,1760322458755,-318.81807787,0.0001305,2]
[391091555,1760322628908,190.76,7.393e-05,2]
[391091556,1760322628950,190.76,7.782e-05,2]
[391091557,1760322628992,190.76,8.172e-05,2]
[391091558,1760322629031,190.76,8.561e-05,2]
[391091559,1760322629076,190.76,8.95e-05,2]
[391091560,1760322629278,190.76,9.339e-05,2]
[391091561,1760322629488,190.76,9.728e-05,2]
[391091562,1760322629665,-0.25647859,0.0001305,2]
[391091563,1760322629722,178.05494272,0.00010117,2]
[391091564,1760322629750,12.70505728,0.00010117,2]
[391091565,1760322629911,190.76,0.00010506,2]
[391091566,1760322630109,190.76,0.00010895,2]
[391091567,1760322630352,190.76,0.00011285,2]
[391091568,1760322630566,190.76,0.00011674,2]
[391091569,1760322630994,190.76,0.00012063,2]
[391091570,1760322631211,190.76,0.00012452,2]
[391091596,1760322632286,-190.76,0.00012841,2]
[391091599,1760322632296,-109.23,0.0001323,2]
[391091608,1760322632452,-81.53,0.0001323,2]
[391091609,1760322632462,-205.91003504,0.000134,2]
[391091610,1760322632503,-50.41954575,0.000134,2]
[391091611,1760322632513,-496.91941651,0.000135,2]
[391091612,1760322632523,-190.76,0.00013619,2]
[391091613,1760322632533,-190.76,0.00014008,2]
[391091614,1760322632542,-256.32958077,0.00014181,2]
[391091615,1760322632552,-500.0,0.00014281,2]
[391091616,1760322632561,-302.19031023,0.00014355,2]
[391091617,1760322632574,-190.76,0.00014398,2]
[391091618,1760322632583,-190.76,0.00014787,2]
[391091619,1760322632593,-510.0,0.00014899,2]
[391091620,1760322632602,-300.0,0.00014899,2]
[391091621,1760322632612,-300.0,0.00014899,2]
[391091623,1760322632621,-1200.0,0.00014899,2]
[391091625,1760322632631,-150.0,0.00014899,2]
[391091627,1760322632640,-5938.13501495,0.000149,2]
[391091668,1760322638420,-1326.70919941,0.000149,2]
[391091669,1760322638433,-1037.35505948,0.000149,2]
[391091670,1760322638444,-665.62707743,0.000149,2]
[391091671,1760322638455,-418.97291817,0.000149,2]
[391091672,1760322638467,-1299.06500054,0.000149,2]
[391091673,1760322638480,-1169.0970635,0.000149,2]
[391091674,1760322638492,-637.63851339,0.000149,2]
[391091675,1760322638503,-158.0463401,0.000149,2]
[391091676,1760322638513,-329.03527352,0.000149,2]
[391091677,1760322638523,-291.55803887,0.00014907,2]
[391091711,1760322640582,-134.96032566,0.00014907,2]
[391091712,1760322640592,-999.68621335,0.00014907,2]
[391091713,1760322640602,-501.42571164,0.00014973,2]
[391091714,1760322640612,-500.0,0.00014973,2]
[391091716,1760322640622,-501.45366279,0.00014973,2]
[391091718,1760322640633,-500.0,0.00014973,2]
[391091721,1760322640642,-500.0,0.00014973,2]
[391091724,1760322640652,-500.18727342,0.00014973,2]
[391091727,1760322640663,-500.66853023,0.00014973,2]
[391091730,1760322640673,-500.0,0.00014973,2]
[391091733,1760322640682,-500.0,0.00014973,2]
[391091736,1760322640691,-475.34413327,0.00014973,2]
[391091739,1760322640700,-500.0,0.00014973,2]
[391091742,1760322640711,-23284.0,0.00014986,2]
[391091745,1760322640734,-165.58082003,0.0001499,2]
[391091748,1760322640744,-151.0,0.00014997,2]
[391091751,1760322640753,-500.0,0.00014999,2]
[391091754,1760322640764,-500.0,0.00014999,2]
[391091757,1760322640773,-500.0,0.00014999,2]
[391091761,1760322640783,-173.64464832,0.00014999,2]
[391091764,1760322640793,-500.0,0.00014999,2]
[391091767,1760322640803,-544.93886356,0.00014999,2]
[391091770,1760322640812,-208.51759612,0.00014999,2]
[391091772,1760322640823,-420.73189719,0.00014999,2]
[391091776,1760322640836,-500.0,0.00014999,2]
[391091779,1760322640846,-500.0,0.00014999,2]
[391091782,1760322640856,-500.0,0.00014999,2]
[391091783,1760322640866,-500.0,0.00014999,2]
[391091786,1760322640877,-500.0,0.00014999,2]
[391091789,1760322640888,-467.31000921,0.00014999,2]
[391091793,1760322640898,-517.28585706,0.00014999,2]
[391091797,1760322640908,-500.0,0.00014999,2]
[391091798,1760322640919,-327.91408783,0.00014999,2]
[391091802,1760322640929,-500.0,0.00014999,2]
[391091805,1760322640938,-500.0,0.00014999,2]
[391091807,1760322640947,-289.19186362,0.00014999,2]
[391091810,1760322640956,-500.0,0.00014999,2]
[391091815,1760322640968,-500.0,0.00014999,2]
[391091817,1760322640978,-500.0,0.00014999,2]
[391091821,1760322640988,-500.0,0.00014999,2]
[391091824,1760322640997,-500.0,0.00014999,2]
[391091827,1760322641006,-500.0,0.00014999,2]
[391091829,1760322641015,-500.0,0.00014999,2]
[391091833,1760322641026,-500.0,0.00014999,2]
[391091836,1760322641037,-416.39816898,0.00014999,2]
[391091839,1760322641047,-500.0,0.00014999,2]
[391091842,1760322641056,-500.0,0.00014999,2]
[391091845,1760322641065,-933.3,0.00014999,2]
[391091848,1760322641080,-178.31142131,0.00014999,2]
[391091851,1760322641093,-23092.41259713,0.00015,2]
[391091854,1760322641102,-160.0,0.00015,2]
[391091857,1760322641112,-454448.29612025,0.00015,2]
[391091860,1760322641124,-3710068.16815399,0.00015,2]
[391091864,1760322641136,-276.3829,0.00015,2]
[391091868,1760322641148,-325.544575,0.00015,2]
[391092151,1760322646562,-5798.71410308,0.00015,2]
[391092152,1760322646617,-582.50873341,0.00015,2]
[391092155,1760323198780,168.5,0.00011887,2]
[391092156,1760323216417,518.31,0.00027397,120]
[391092164,1760323831492,-314.03,0.00013699,2]
[391092166,1760323831501,-250.0,0.00013801,2]
[391092168,1760323831511,-195.0,0.00013904,2]
[391092169,1760323831520,-2000.0,0.00013904,2]
[391092170,1760323831531,-339.84886741,0.00014311,2]
[391092171,1760323831541,-1314.59,0.00014456,2]
[391092172,1760323831551,-464.0,0.00014572,2]
[391092173,1760323831561,-300.0,0.00014572,2]
[391092174,1760323831571,-300.0,0.00014572,2]
[391092175,1760323831583,-1200.0,0.00014572,2]
[391092176,1760323831593,-6549.99,0.00014573,2]
[391092177,1760323831602,-324.25468268,0.00014573,2]
[391092178,1760323831612,-500.0,0.000146,2]
[391092179,1760323831622,-3890.91,0.00014684,2]
[391092180,1760323831632,-868.18416828,0.00014763,2]
[391092181,1760323831641,-250.0,0.00014787,7]
[391092182,1760323831650,-175.821,0.00014899,2]
[391092183,1760323831659,-3680.374,0.00014899,2]
[391092184,1760323831669,-150.0,0.00014899,2]
[391092185,1760323831678,-500.0,0.000149,2]
[391092186,1760323831688,-500.0,0.000149,2]
[391092187,1760323831696,-500.0,0.000149,2]
[391092188,1760323831706,-500.0,0.000149,2]
[391092189,1760323831716,-500.0,0.000149,2]
[391092190,1760323831726,-500.0,0.000149,2]
[391092191,1760323831735,-500.0,0.000149,2]
[391092192,1760323831744,-500.0,0.000149,2]
[391092193,1760323831753,-500.0,0.000149,2]
[391092194,1760323831762,-500.0,0.000149,2]
[391092195,1760323831771,-500.0,0.000149,2]
[391092196,1760323831781,-500.0,0.000149,2]
[391092197,1760323831790,-500.0,0.000149,2]
[391092198,1760323831799,-500.0,0.000149,2]
[391092199,1760323831809,-500.0,0.000149,2]
[391092200,1760323831818,-500.0,0.000149,2]
[391092201,1760323831827,-500.0,0.000149,2]
[391092202,1760323831836,-172.38153354,0.000149,2]
[391092203,1760323831845,-297.4983,0.000149,2]
[391092204,1760323831854,-1001.60758429,0.000149,2]
[391092205,1760323831863,-176.35509061,0.000149,2]
[391092206,1760323831872,-117.95477319,0.000149,2]
[391092207,1760323831884,-433.85880056,0.000149,2]
[391092208,1760323831899,-264.82642625,0.000149,2]
[391092209,1760323831907,-155.17195685,0.000149,2]
[391092210,1760323831917,-344.5355006,0.000149,2]
[391092211,1760323831926,-1435.05491052,0.000149,2]
[391092212,1760323831936,-541.95200014,0.000149,2]
[391092213,1760323831979,-3036.49338934,0.000149,2]
[391092214,1760323831988,-849.11398037,0.000149,2]
[391092215,1760323831998,-7602.46782994,0.000149,2]
[391092216,1760323832007,-4052.3064,0.000149,2]
[391092217,1760323832017,-2132.498,0.000149,2]
[391092218,1760323832026,-166.51103624,0.000149,2]
[391092219,1760323832046,-161.89078249,0.000149,2]
[391092220,1760323832055,-5227.35618361,0.000149,2]
[391092221,1760323832064,-407.96308056,0.000149,2]
[391092222,1760323832073,-284.34557634,0.000149,2]
[391092223,1760323832083,-500.93610499,0.00014973,2]
[391092224,1760323832093,-500.0,0.00014973,2]
[391092225,1760323832102,-500.0,0.00014973,2]
[391092226,1760323832113,-169.88795496,0.00014973,2]
[391092227,1760323832124,-522.98176487,0.00014973,2]
[391092228,1760323832136,-503.13340907,0.00014973,2]
[391092229,1760323832146,-500.78939179,0.00014973,2]
[391092230,1760323832156,-500.0,0.00014973,2]
[391092231,1760323832165,-500.0,0.00014973,2]
[391092232,1760323832175,-500.0,0.00014973,2]
[391092233,1760323832185,-500.0,0.00014973,2]
[391092234,1760323832196,-500.0,0.00014973,2]
[391092235,1760323832205,-150.0,0.00014977,2]
[391092236,1760323832215,-151.0,0.00014991,2]
[391092237,1760323832224,-151.0,0.00014991,2]
[391092238,1760323832234,-151.0,0.00014991,2]
[391092239,1760323832244,-151.0,0.00014991,2]
[391092240,1760323832253,-151.0,0.00014991,2]
[391092241,1760323832262,-151.0,0.00014991,2]
[391092242,1760323832271,-151.0,0.00014991,2]
[391092243,1760323832281,-151.0,0.00014991,2]
[391092244,1760323832291,-151.0,0.00014991,2]
[391092245,1760323832300,-151.0,0.00014991,2]
[391092246,1760323832310,-151.0,0.00014991,2]
[391092247,1760323832319,-200.0,0.00014991,2]
[391092248,1760323832329,-151.0,0.00014991,2]
[391092249,1760323832338,-197.25900208,0.00014991,2]
[391092250,1760323832348,-151.0,0.00014991,2]
[391092251,1760323832360,-151.0,0.00014991,2]
[391092252,1760323832370,-152.0664384,0.00014991,2]
[391092253,1760323832381,-151.0,0.00014991,2]
[391092254,1760323832391,-151.0,0.00014991,2]
[391092255,1760323832400,-151.0,0.00014991,2]
[391092256,1760323832409,-151.0,0.00014991,2]
[391092257,1760323832419,-151.0,0.00014991,2]
[391092258,1760323832433,-151.0,0.00014991,2]
[391092259,1760323832443,-151.0,0.00014991,2]
[391092260,1760323832453,-151.0,0.00014991,2]
[391092261,1760323832462,-151.0,0.00014991,2]
[391092262,1760323832472,-151.0,0.00014991,2]
[391092263,1760323832482,-151.0,0.00014991,2]
[391092264,1760323832492,-151.0,0.00014991,2]
[391092265,1760323832502,-151.0,0.00014991,2]
[391092266,1760323832512,-151.0,0.00014991,2]
[391092267,1760323832522,-151.0,0.00014991,2]
[391092268,1760323832532,-151.0,0.00014991,2]
[391092269,1760323832542,-151.0,0.00014991,2]
[391092270,1760323832552,-151.0,0.00014991,2]
[391092271,1760323832562,-151.0,0.00014991,2]
[391092272,1760323832572,-151.0,0.00014991,2]
[391092273,1760323832581,-151.0,0.00014991,2]
[391092274,1760323832591,-151.0,0.00014991,2]
[391092275,1760323832601,-151.0,0.00014991,2]
[391092276,1760323832616,-151.0,0.00014991,2]
[391092277,1760323832627,-151.0,0.00014991,2]
[391092278,1760323832637,-151.0,0.00014991,2]
[391092279,1760323832647,-151.0,0.00014991,2]
[391092280,1760323832656,-151.0,0.00014991,2]
[391092281,1760323832666,-151.0,0.00014991,2]
[391092282,1760323832675,-151.0,0.00014991,2]
[391092283,1760323832685,-200.0,0.00014991,2]
[391092284,1760323832695,-500.0,0.00014991,2]
[391092285,1760323832704,-151.0,0.00014991,2]
[391092286,1760323832714,-151.0,0.00014991,2]
[391092287,1760323832725,-500.0,0.00014991,2]
[391092288,1760323832740,-151.0,0.00014991,2]
[391092289,1760323832751,-500.0,0.00014991,2]
[391092290,1760323832761,-500.0,0.00014991,2]
[391092291,1760323832771,-500.0,0.00014991,2]
[391092292,1760323832781,-500.0,0.00014991,2]
[391092293,1760323832790,-500.0,0.00014991,2]
[391092294,1760323832801,-500.0,0.00014991,2]
[391092295,1760323832814,-500.0,0.00014991,2]
[391092296,1760323832824,-500.0,0.00014991,2]
[391092297,1760323832834,-500.0,0.00014991,2]
[391092298,1760323832844,-500.0,0.00014991,2]
[391092299,1760323832854,-500.0,0.00014991,2]
[391092300,1760323832864,-200.0,0.00014991,2]
[391092301,1760323832874,-151.0,0.00014997,2]
[391092302,1760323832887,-151.0,0.00014997,2]
[391092303,1760323832897,-151.0,0.00014997,2]
[391092304,1760323832907,-239.52491338,0.00014999,2]
[391092305,1760323832917,-150.0,0.00014999,2]
[391092306,1760323832927,-289.66919649,0.00014999,2]
[391092307,1760323832937,-1000.0,0.00014999,2]
[391092308,1760323832947,-783.82196612,0.00014999,2]
[391092309,1760323832956,-500.0,0.00014999,2]
[391092310,1760323832966,-500.0,0.00014999,2]
[391092311,1760323832976,-404.46277561,0.00014999,2]
[391092312,1760323832986,-1418492.06785821,0.00015,2]
[391092322,1760323837535,-6063.2867583,0.00015,2]
[391092323,1760323837745,-2813.85228289,0.00015,2]
[391092325,1760323839474,-1250.97511602,0.00015,2]
[391092326,1760323839527,-300.85483836,0.00015,2]
[391092327,1760323839539,-578.55,0.00015,2]
[391092328,1760323839651,-1252.79859887,0.00015,2]
[391092329,1760323839663,-1986992.27473394,0.00015,2]
[391092330,1760323839673,-4169655.06197037,0.00015,2]
[391092333,1760323839958,-33645.86309609,0.00015,2]
[391092343,1760323842624,-446.4,0.00015,2]
[391092344,1760323842836,-2423.539998,0.00015,2]
[391092345,1760323842848,-1174.910634,0.00015,2]
[391092346,1760323842891,-2285.84334041,0.00015,2]
[391092350,1760323845605,-1096.14142167,0.00015,2]
[391092351,1760323845617,-471.10533208,0.00015,2]
[391092352,1760323845764,-444.2126085,0.00015,2]
[391092384,1760324154678,169.32843371,0.0001,2]
[391092385,1760324506952,-500.0,0.00013599,2]
[391092386,1760324727333,31.21,0.00013567,2]
[391092392,1760325031797,-186.85668004,0.00013492,2]
[391092393,1760325031807,-500.0,0.00013517,2]
[391092394,1760325031816,-2000.0,0.00013542,2]
[391092395,1760325031825,-1514.79855541,0.00013592,2]
[391092396,1760325031836,-485.20144459,0.00013592,2]
[391092397,1760325031846,-300.0,0.0001382,2]
[391092398,1760325031855,-1200.0,0.0001382,2]
[391092399,1760325031864,-300.0,0.0001382,2]
[391092400,1760325031873,-1000.0,0.00013963,2]
[391092401,1760325031883,-220.0,0.00014237,2]
[391092402,1760325031894,-150.0,0.00014331,2]
[391092403,1760325031903,-324.22873223,0.0001435,2]
[391092404,1760325031913,-2811.64,0.0001435,2]
[391092405,1760325031925,-2751.0,0.00014616,2]
[391092406,1760325031935,-301.33,0.00014658,2]
[391092407,1760325031944,-868.18416829,0.00014723,2]
[391092408,1760325031954,-171.89,0.00014788,2]
[391092409,1760325031963,-150.0,0.00014799,2]
[391092427,1760325032295,-990.42432436,0.000148,2]
[391092428,1760325032310,-1097.1968,0.0001485,2]
[391092429,1760325032319,-2000.0,0.00014869,2]
[391092430,1760325032329,-150.44723085,0.00014869,2]
[391092431,1760325032338,-300.0,0.00014869,2]
[391092432,1760325032347,-300.0,0.00014869,2]
[391092433,1760325032357,-300.77607634,0.00014869,2]
[391092434,1760325032368,-253.71452054,0.00014869,2]
[391092435,1760325032378,-150.0,0.00014869,2]
[391092436,1760325032388,-326.64496479,0.00014869,2]
[391092437,1760325032398,-2000.0,0.00014869,2]
[391092438,1760325032411,-189.356,0.000149,2]
[391092439,1760325032420,-260.4841204,0.000149,2]
[391092440,1760325032432,-4399.3078796,0.000149,2]
[391092441,1760325032442,-1000.0,0.000149,2]